fUST/lending_fUST_20240704
["ID","MTS","AMOUNT","RATE_DAILY","PERIOD"]
[331122832,1720092642273,-1163.14,0.00013983,2]
[331122833,1720092642283,-1163.14,0.00013984,2]
[331122834,1720092642292,-1163.14,0.00013984,2]
[331122835,1720092642303,-500.0,0.00013985,2]
[331122836,1720092642313,-500.0,0.00013985,2]
[331122837,1720092642323,-500.0,0.00013985,2]
[331122838,1720092642332,-500.0,0.00013985,2]
[331122839,1720092642341,-500.0,0.00013985,2]
[331122840,1720092642350,-500.0,0.00013985,2]
[331122841,1720092642359,-500.0,0.00013985,2]
[331122842,1720092642369,-500.0,0.00013985,2]
[331122843,1720092642378,-196.83503195,0.00013985,2]
[331122844,1720092642388,-508.49626885,0.00013985,2]
[331122845,1720092642397,-500.0,0.00013985,2]
[331122846,1720092642407,-500.0,0.00013985,2]
[331122847,1720092642416,-500.0,0.00013985,2]
[331122848,1720092642425,-504.67055399,0.00013985,2]
[331122849,1720092642434,-500.0,0.00013985,2]
[331122850,1720092642444,-503.5,0.00013985,2]
[331122851,1720092642453,-504.08738477,0.00013985,2]
[331122852,1720092642463,-500.0,0.00013985,2]
[331122853,1720092642473,-511.81270021,0.00013985,2]
[331122854,1720092642483,-504.27613205,0.00013985,2]
[331122855,1720092642492,-387.67477119,0.00013985,2]
[331122856,1720092642502,-500.0,0.00013985,2]
[331122857,1720092642512,-506.92412009,0.00013985,2]
[331122858,1720092642522,-500.0,0.00013985,2]
[331122859,1720092642538,-508.59456744,0.00013985,2]
[331122860,1720092642548,-197.22880303,0.00013985,2]
[331122861,1720092642558,-500.0,0.00013985,2]
[331122862,1720092642570,-500.0,0.00013985,2]
[331122863,1720092642580,-513.70518318,0.00013985,2]
[331122864,1720092642591,-500.0,0.00013985,2]
[331122865,1720092642601,-500.0,0.00013985,2]
[331122866,1720092642612,-500.0,0.00013985,2]
[331122867,1720092642623,-500.0,0.00013985,2]
[331122868,1720092642634,-506.63905496,0.00013985,2]
[331122869,1720092642646,-500.0,0.00013985,2]
[331122870,1720092642656,-500.0,0.00013985,2]
[331122871,1720092642667,-500.0,0.00013985,2]
[331122872,1720092642677,-571.17164899,0.00013985,2]
[331122873,1720092642688,-500.0,0.00013985,2]
[331122874,1720092642699,-511.82,0.00013985,2]
[331122875,1720092642709,-500.0,0.00013985,2]
[331122876,1720092642720,-500.0,0.00013985,2]
[331122877,1720092642729,-500.0,0.00013985,2]
[331122878,1720092642740,-500.0,0.00013985,2]
[331122879,1720092642754,-500.0,0.00013985,2]
[331122880,1720092642764,-500.0,0.00013985,2]
[331122881,1720092642774,-556.55656625,0.00013985,2]
[331122882,1720092642786,-500.0,0.00013985,2]
[331122883,1720092642799,-500.16890145,0.00013985,2]
[331122884,1720092642808,-500.0,0.00013985,2]
[331122885,1720092642818,-500.0,0.00013985,2]
[331122886,1720092642827,-500.0,0.00013985,2]
[331122887,1720092642838,-437.8829996,0.00013985,2]
[331122888,1720092642847,-582.65,0.00013985,2]
[331122889,1720092642857,-500.0,0.00013985,2]
[331122890,1720092642867,-500.0,0.00013985,2]
[331122891,1720092642876,-500.0,0.00013985,2]
[331122892,1720092642886,-522.17575805,0.00013985,2]
[331122893,1720092642895,-500.0,0.00013985,2]
[331122894,1720092642904,-500.0,0.00013985,2]
[331122895,1720092642914,-500.0,0.00013985,2]
[331122896,1720092642924,-500.0,0.00013985,2]
[331122897,1720092642934,-483.36232367,0.00013985,2]
[331122898,1720092642944,-503.48209233,0.00013985,2]
[331122899,1720092642954,-500.0,0.00013985,2]
[331122900,1720092642964,-500.0,0.00013985,2]
[331122901,1720092642973,-500.0,0.00013985,2]
[331122902,1720092642982,-191.49592881,0.00013985,2]
[331122903,1720092642992,-500.0,0.00013985,2]
[331122904,1720092643002,-505.07802294,0.00013985,2]
[331122905,1720092643011,-502.12413421,0.00013985,2]
[331122906,1720092643020,-504.23984414,0.00013985,2]
[331122907,1720092643031,-500.0,0.00013985,2]
[331122908,1720092643041,-500.0,0.00013985,2]
[331122909,1720092643051,-270.48384222,0.00013985,2]
[331122910,1720092643060,-500.0,0.00013985,2]
[331122911,1720092643071,-500.0,0.00013985,2]
[331122912,1720092643081,-500.0,0.00013985,2]
[331122913,1720092643091,-500.0,0.00013985,2]
[331122914,1720092643101,-706.6,0.00013985,2]
[331122915,1720092643110,-500.0,0.00013985,2]
[331122916,1720092643120,-500.0,0.00013985,2]
[331122917,1720092643130,-500.0,0.00013985,2]
[331122918,1720092643139,-829.26,0.00013985,2]
[331122919,1720092643149,-500.0,0.00013985,2]
[331122920,1720092643159,-500.0,0.00013985,2]
[331122921,1720092643169,-500.0,0.00013985,2]
[331122922,1720092643178,-500.0,0.00013985,2]
[331122923,1720092643188,-500.0,0.00013985,2]
[331122924,1720092643198,-561.16821501,0.00013985,2]
[331122925,1720092643208,-749.53,0.00013985,2]
[331122926,1720092643218,-500.0,0.00013985,2]
[331122927,1720092643228,-500.0,0.00013985,2]
[331122928,1720092643238,-606.56,0.00013985,2]
[331122929,1720092643247,-500.0,0.00013985,2]
[331122930,1720092643257,-500.0,0.00013985,2]
[331122931,1720092643266,-500.0,0.00013985,2]
[331122932,1720092643278,-500.0,0.00013985,2]
[331122933,1720092643287,-505.94327232,0.00013985,2]
[331122934,1720092643296,-500.0,0.00013985,2]
[331122935,1720092643306,-500.0,0.00013985,2]
[331122936,1720092643315,-500.0,0.00013985,2]
[331122937,1720092643325,-334.08763431,0.00013985,2]
[331122938,1720092643334,-500.0,0.00013985,2]
[331122939,1720092643343,-500.0,0.00013985,2]
[331122940,1720092643353,-500.0,0.00013985,2]
[331122941,1720092643362,-500.0,0.00013985,2]
[331122942,1720092643371,-296.75417959,0.00013985,2]
[331122967,1720092644265,-450.62036725,0.00013963,2]
[331122969,1720092644275,-36.87963275,0.0001398,2]
[331122971,1720092644288,-463.12036725,0.0001398,2]
[331122973,1720092644298,-203.24582041,0.00013985,2]
[331122975,1720092644308,-1430.535939,0.00013985,2]
[331122977,1720092644318,-220.55979806,0.00013985,2]
[331123239,1720093245495,151.0,0.00025,120]
[331123241,1720093268076,151.0,0.00025,120]
[331123243,1720093273638,181.55388012,9.999e-05,2]
[331123259,1720093640526,376.09694548,9.999e-05,2]
[331123260,1720093657589,566.23632333,9.999e-05,2]
[331123261,1720093689889,435.03037269,9.999e-05,2]
[331123262,1720093713460,-776.37615452,0.0001212,2]
[331123263,1720093713493,-69.70723726,0.0001212,2]
[331123264,1720093713547,-113.4614849,0.0001212,2]
[331123265,1720093713577,-154.99904076,0.0001212,2]
[331123266,1720093713606,-300.0,0.00012837,2]
[331123267,1720093713636,-277.62286612,0.00012837,2]
[331123268,1720093713675,-22.37713388,0.00012837,2]
[331123269,1720093713704,-762.48527432,0.00012838,2]
[331123300,1720093832775,-300.0,0.00012837,2]
[331123304,1720093832785,-11331.22645596,0.00012838,2]
[331123358,1720093838861,-12796.28826972,0.00012838,2]
[331123359,1720093838872,-500.0,0.00013698,2]
[331123360,1720093838882,-500.0,0.00013698,2]
[331123361,1720093838892,-346.2065268,0.00013698,2]
[331123362,1720093838902,-399.50978021,0.00013698,2]
[331123363,1720093838911,-184.94950148,0.00013698,2]
[331123364,1720093838921,-304.55,0.00013699,2]
[331123366,1720093838930,-266.64331827,0.00013853,2]
[331123367,1720093838939,-450.0,0.00013853,2]
[331123368,1720093838949,-468.79714183,0.00013853,2]
[331123369,1720093838958,-500.0,0.00013853,2]
[331123370,1720093838967,-496.61354616,0.00013853,2]
[331123371,1720093838976,-4576.03884679,0.00013854,2]
[331123372,1720093838986,-1133.56313975,0.00013854,2]
[331123373,1720093838995,-4576.03884678,0.00013857,2]
[331123374,1720093839005,-500.0,0.00013858,2]
[331123375,1720093839015,-730.45,0.00013858,2]
[331123376,1720093839025,-3072.98,0.00013858,2]
[331123377,1720093839035,-500.0,0.00013858,2]
[331123378,1720093839046,-208.85286476,0.00013858,2]
[331123379,1720093839056,-345.95245614,0.00013858,2]
[331123380,1720093839066,-16067.48,0.00013858,2]
[331123381,1720093839077,-500.0,0.00013858,2]
[331123382,1720093839087,-1932.73,0.00013858,2]
[331123383,1720093839096,-4576.03884678,0.00013859,2]
[331123384,1720093839107,-41636.3776003,0.00013861,2]
[331123385,1720093839120,-4576.03884678,0.00013862,2]
[331123386,1720093839130,-4576.03884678,0.00013864,2]
[331123387,1720093839140,-591.25780219,0.00013871,2]
[331123388,1720093839151,-511.49372952,0.00013871,2]
[331123389,1720093839161,-500.0,0.00013871,2]
[331123390,1720093839172,-500.0,0.00013871,2]
[331123391,1720093839182,-505.51173001,0.00013871,2]
[331123392,1720093839194,-500.0,0.00013871,2]
[331123393,1720093839205,-500.0,0.00013871,2]
[331123394,1720093839215,-500.0,0.00013871,2]
[331123395,1720093839226,-506.19410695,0.00013871,2]
[331123396,1720093839237,-500.0,0.00013871,2]
[331123397,1720093839247,-500.0,0.00013871,2]
[331123398,1720093839257,-500.0,0.00013871,2]
[331123399,1720093839268,-527.96335354,0.00013871,2]
[331123400,1720093839278,-500.0,0.00013871,2]
[331123401,1720093839288,-503.91974439,0.00013871,2]
[331123402,1720093839298,-505.1629612,0.00013871,2]
[331123403,1720093839309,-504.95194089,0.00013871,2]
[331123404,1720093839319,-504.1322412,0.00013871,2]
[331123405,1720093839330,-505.46619013,0.00013871,2]
[331123406,1720093839340,-500.0,0.00013871,2]
[331123407,1720093839351,-502.29625066,0.00013871,2]
[331123408,1720093839361,-501.85057337,0.00013871,2]
[331123409,1720093839371,-502.24044204,0.00013871,2]
[331123410,1720093839382,-506.39025932,0.00013871,2]
[331123411,1720093839392,-502.867436,0.00013871,2]
[331123412,1720093839403,-501.54577722,0.00013871,2]
[331123413,1720093839413,-504.04088921,0.00013871,2]
[331123414,1720093839425,-500.0,0.00013871,2]
[331123415,1720093839435,-500.0,0.00013871,2]
[331123416,1720093839444,-411.25285483,0.00013871,2]
[331123417,1720093839454,-2934.09,0.00013871,2]
[331123418,1720093839463,-500.0,0.00013871,2]
[331123419,1720093839473,-504.34013973,0.00013871,2]
[331123420,1720093839483,-500.0,0.00013871,2]
[331123421,1720093839492,-500.0,0.00013871,2]
[331123422,1720093839502,-500.0,0.00013871,2]
[331123423,1720093839512,-500.0,0.00013871,2]
[331123424,1720093839521,-504.01875086,0.00013871,2]
[331123425,1720093839531,-500.0,0.00013871,2]
[331123426,1720093839540,-500.0,0.00013871,2]
[331123427,1720093839549,-976.48,0.00013871,2]
[331123428,1720093839562,-500.0,0.00013871,2]
[331123429,1720093839572,-501.53968215,0.00013871,2]
[331123430,1720093839582,-503.22960539,0.00013871,2]
[331123431,1720093839592,-502.33221676,0.00013871,2]
[331123432,1720093839601,-500.0,0.00013871,2]
[331123433,1720093839611,-500.0,0.00013871,2]
[331123434,1720093839620,-500.0,0.00013871,2]
[331123435,1720093839630,-500.0,0.00013871,2]
[331123436,1720093839640,-500.0,0.00013871,2]
[331123437,1720093839649,-505.03447168,0.00013871,2]
[331123438,1720093839658,-500.0,0.00013871,2]
[331123439,1720093839668,-500.0,0.00013871,2]
[331123440,1720093839678,-500.0,0.00013871,2]
[331123441,1720093839687,-505.97981691,0.00013871,2]
[331123442,1720093839697,-2272.52,0.00013871,2]
[331123443,1720093839706,-426.89802828,0.00013871,2]
[331123444,1720093839716,-886.35,0.00013871,2]
[331123445,1720093839727,-500.0,0.00013871,2]
[331123446,1720093839738,-3075.16,0.00013871,2]
[331123447,1720093839748,-501.72286971,0.00013871,2]
[331123448,1720093839758,-500.0,0.00013871,2]
[331123449,1720093839768,-500.0,0.00013871,2]
[331123450,1720093839778,-1625.78,0.00013871,2]
[331123451,1720093839787,-500.0,0.00013871,2]
[331123452,1720093839797,-500.0,0.00013871,2]
[331123453,1720093839807,-500.0,0.00013871,2]
[331123454,1720093839816,-500.0,0.00013871,2]
[331123455,1720093839826,-500.0,0.00013871,2]
[331123456,1720093839836,-500.0,0.00013871,2]
[331123457,1720093839846,-500.0,0.00013871,2]
[331123458,1720093839856,-500.0,0.00013871,2]
[331123459,1720093839866,-500.0,0.00013871,2]
[331123460,1720093839875,-500.0,0.00013871,2]
[331123461,1720093839884,-500.0,0.00013871,2]
[331123462,1720093839894,-1345.01,0.00013871,2]
[331123463,1720093839905,-504.65355884,0.00013871,2]
[331123464,1720093839915,-501.47314881,0.00013871,2]
[331123465,1720093839925,-500.0,0.00013871,2]
[331123466,1720093839936,-506.06682483,0.00013871,2]
[331123467,1720093839945,-500.0,0.00013871,2]
[331123468,1720093839955,-500.0,0.00013871,2]
[331123469,1720093839964,-5556.78,0.00013871,2]
[331123470,1720093839973,-500.0,0.00013871,2]
[331123471,1720093839982,-500.0,0.00013871,2]
[331123472,1720093839993,-502.604327,0.00013871,2]
[331123473,1720093840004,-500.0,0.00013871,2]
[331123474,1720093840014,-500.0,0.00013871,2]
[331123475,1720093840023,-503.89990542,0.00013871,2]
[331123476,1720093840032,-505.30042968,0.00013871,2]
[331123477,1720093840042,-500.0,0.00013871,2]
[331123478,1720093840051,-500.0,0.00013871,2]
[331123479,1720093840060,-503.71033226,0.00013871,2]
[331123480,1720093840069,-510.74215904,0.00013871,2]
[331123481,1720093840079,-500.0,0.00013871,2]
[331123482,1720093840088,-512.60721701,0.00013871,2]
[331123483,1720093840097,-500.00000099,0.000139,2]
[331123484,1720093840106,-39099.89701318,0.00013942,2]
[331123485,1720093840115,-41636.3776003,0.00013943,2]
[331123486,1720093840127,-41636.3776003,0.00013943,2]
[331123487,1720093840136,-500.0,0.00013952,2]
[331123488,1720093840145,-500.0,0.00013952,2]
[331123489,1720093840154,-1282.79,0.00013953,2]
[331123490,1720093840163,-500.0,0.00013953,2]
[331123491,1720093840172,-500.0,0.00013953,2]
[331123492,1720093840182,-500.0,0.00013953,2]
[331123493,1720093840191,-500.0,0.00013953,2]
[331123494,1720093840201,-500.0,0.00013953,2]
[331123495,1720093840211,-1816.95,0.00013953,2]
[331123496,1720093840221,-500.0,0.00013953,2]
[331123497,1720093840230,-503.93441485,0.00013953,2]
[331123498,1720093840239,-605.62631384,0.00013953,2]
[331123499,1720093840249,-500.0,0.00013953,2]
[331123500,1720093840258,-500.0,0.00013953,2]
[331123501,1720093840267,-500.0,0.00013953,2]
[331123502,1720093840276,-500.0,0.00013953,2]
[331123503,1720093840287,-500.0,0.00013953,2]
[331123504,1720093840296,-1149.45,0.00013953,2]
[331123505,1720093840306,-1550.27,0.00013953,2]
[331123506,1720093840317,-504.55048619,0.00013953,2]
[331123507,1720093840327,-537.37123027,0.00013953,2]
[331123508,1720093840337,-225.18702295,0.00013953,2]
[331123509,1720093840346,-500.0,0.00013953,2]
[331123510,1720093840356,-504.07488928,0.00013953,2]
[331123511,1720093840365,-500.0,0.00013953,2]
[331123512,1720093840375,-518.2131094,0.00013953,2]
[331123513,1720093840384,-500.0,0.00013953,2]
[331123514,1720093840394,-1028.15,0.00013953,2]
[331123515,1720093840403,-500.0,0.00013953,2]
[331123516,1720093840412,-500.0,0.00013953,2]
[331123518,1720093840422,-500.0,0.00013953,2]
[331123520,1720093840432,-500.0,0.00013953,2]
[331123523,1720093840441,-500.0,0.00013953,2]
[331123526,1720093840450,-500.0,0.00013953,2]
[331123528,1720093840459,-500.0,0.00013953,2]
[331123530,1720093840468,-500.0,0.00013953,2]
[331123532,1720093840478,-501.66508085,0.00013953,2]
[331123534,1720093840487,-500.0,0.00013953,2]
[331123536,1720093840496,-501.17801153,0.00013953,2]
[331123538,1720093840506,-601.52333115,0.00013953,2]
[331123540,1720093840515,-865.84,0.00013953,2]
[331123541,1720093840524,-504.92352374,0.00013953,2]
[331123542,1720093840534,-500.0,0.00013953,2]
[331123543,1720093840543,-500.0,0.00013953,2]
[331123544,1720093840553,-500.0,0.00013953,2]
[331123545,1720093840573,-536.49865275,0.00013953,2]
[331123546,1720093840584,-500.0,0.00013953,2]
[331123547,1720093840594,-500.0,0.00013953,2]
[331123548,1720093840604,-500.0,0.00013953,2]
[331123549,1720093840614,-500.0,0.00013953,2]
[331123550,1720093840624,-1444.78,0.00013953,2]
[331123551,1720093840635,-503.36225032,0.00013953,2]
[331123552,1720093840644,-1323.11,0.00013953,2]
[331123553,1720093840654,-501.08516647,0.00013953,2]
[331123554,1720093840664,-502.09919256,0.00013953,2]
[331123555,1720093840674,-880.31,0.00013953,2]
[331123556,1720093840684,-162.8326842,0.00013953,2]
[331123557,1720093840694,-5932.72,0.00013953,2]
[331123558,1720093840703,-504.19239552,0.00013953,2]
[331123560,1720093840713,-500.0,0.00013953,2]
[331123562,1720093840723,-500.0,0.00013953,2]
[331123563,1720093840733,-501.76799852,0.00013953,2]
[331123564,1720093840743,-503.4498777,0.00013953,2]
[331123565,1720093840752,-500.0,0.00013953,2]
[331123566,1720093840762,-500.0,0.00013953,2]
[331123568,1720093840771,-500.0,0.00013953,2]
[331123570,1720093840780,-504.99510701,0.00013953,2]
[331123571,1720093840789,-500.0,0.00013953,2]
[331123573,1720093840799,-500.0,0.00013953,2]
[331123574,1720093840808,-500.0,0.00013953,2]
[331123575,1720093840817,-500.0,0.00013953,2]
[331123576,1720093840826,-500.0,0.00013953,2]
[331123577,1720093840836,-673.92,0.00013953,2]
[331123578,1720093840845,-500.0,0.00013953,2]
[331123579,1720093840855,-500.0,0.00013953,2]
[331123580,1720093840864,-500.0,0.00013953,2]
[331123581,1720093840873,-500.0,0.00013953,2]
[331123582,1720093840883,-504.74927562,0.00013953,2]
[331123583,1720093840892,-1040.62,0.00013953,2]
[331123584,1720093840902,-500.0,0.00013953,2]
[331123585,1720093840911,-500.0,0.00013953,2]
[331123586,1720093840920,-500.0,0.00013953,2]
[331123587,1720093840930,-500.0,0.00013953,2]
[331123589,1720093840939,-500.0,0.00013953,2]
[331123590,1720093840948,-500.0,0.00013953,2]
[331123591,1720093840957,-501.41873712,0.00013953,2]
[331123592,1720093840966,-500.0,0.00013953,2]
[331123593,1720093840975,-500.0,0.00013953,2]
[331123594,1720093840984,-507.29910008,0.00013953,2]
[331123595,1720093840994,-500.0,0.00013953,2]
[331123596,1720093841003,-500.0,0.00013953,2]
[331123597,1720093841013,-1142.32,0.00013953,2]
[331123598,1720093841022,-41636.3776003,0.00013954,2]
[331123599,1720093841032,-29502.87163719,0.00013954,2]
[331123600,1720093841041,-151.0,0.00013954,2]
[331123602,1720093841192,-151.0,0.00013954,2]
[331123603,1720093841205,-124909.132801,0.00013954,2]
[331123604,1720093841216,-151.34202917,0.00013957,2]
[331123605,1720093841228,-500.0,0.0001396,2]
[331123606,1720093841237,-500.0,0.0001396,2]
[331123607,1720093841249,-500.0,0.0001396,2]
[331123608,1720093841258,-500.0,0.0001396,2]
[331123609,1720093841266,-500.0,0.0001396,2]
[331123610,1720093841275,-500.0,0.00013962,2]
[331123611,1720093841284,-500.0,0.00013962,2]
[331123612,1720093841294,-500.0,0.00013962,2]
[331123613,1720093841303,-503.79900098,0.00013962,2]
[331123614,1720093841311,-543.28423714,0.00013962,2]
[331123615,1720093841320,-500.0,0.00013963,2]
[331123616,1720093841329,-392.40600233,0.00013963,2]
[331123617,1720093841338,-500.0,0.00013963,2]
[331123618,1720093841347,-500.0,0.00013963,2]
[331123619,1720093841356,-500.0,0.00013963,2]
[331123620,1720093841368,-500.0,0.00013963,2]
[331123621,1720093841377,-1205.3,0.00013963,2]
[331123622,1720093841386,-500.0,0.00013963,2]
[331123623,1720093841396,-1603.48,0.00013963,2]
[331123624,1720093841405,-500.0,0.00013963,2]
[331123625,1720093841414,-364.93296928,0.00013963,2]
[331123626,1720093841423,-500.0,0.00013963,2]
[331123627,1720093841432,-500.0,0.00013963,2]
[331123628,1720093841441,-5112.35,0.00013963,2]
[331123629,1720093841450,-501.42338525,0.00013964,2]
[331123630,1720093841459,-503.51893587,0.00013964,2]
[331123631,1720093841468,-502.92117065,0.00013964,2]
[331123632,1720093841482,-502.66788275,0.00013964,2]
[331123633,1720093841491,-505.43400334,0.00013964,2]
[331123634,1720093841500,-500.0,0.00013964,2]
[331123635,1720093841513,-504.66005101,0.00013964,2]
[331123636,1720093841522,-500.0,0.00013964,2]
[331123637,1720093841531,-500.0,0.00013964,2]
[331123638,1720093841540,-500.0,0.00013964,2]
[331123639,1720093841549,-857.1,0.00013964,2]
[331123640,1720093841561,-541.16192918,0.00013964,2]
[331123641,1720093841570,-502.93339657,0.00013964,2]
[331123642,1720093841579,-500.0,0.00013964,2]
[331123643,1720093841589,-770.97,0.00013964,2]
[331123644,1720093841598,-500.0,0.00013964,2]
[331123645,1720093841607,-169.57752147,0.00013964,2]
[331123646,1720093841616,-500.0,0.00013964,2]
[331123647,1720093841625,-502.96558748,0.00013964,2]
[331123648,1720093841635,-500.0,0.00013964,2]
[331123649,1720093841644,-500.0,0.00013964,2]
[331123650,1720093841653,-500.0,0.00013964,2]
[331123651,1720093841662,-500.0,0.00013964,2]
[331123652,1720093841671,-500.0,0.00013964,2]
[331123653,1720093841680,-500.0,0.00013964,2]
[331123654,1720093841690,-500.0,0.00013964,2]
[331123655,1720093841699,-500.0,0.00013964,2]
[331123656,1720093841708,-500.0,0.00013964,2]
[331123657,1720093841716,-500.0,0.00013964,2]
[331123658,1720093841728,-503.16489389,0.00013964,2]
[331123659,1720093841737,-504.4939679,0.00013964,2]
[331123660,1720093841746,-500.0,0.00013964,2]
[331123661,1720093841755,-500.0,0.00013964,2]
[331123662,1720093841764,-500.0,0.00013964,2]
[331123663,1720093841773,-500.0,0.00013964,2]
[331123664,1720093841782,-500.0,0.00013964,2]
[331123665,1720093841791,-500.0,0.00013964,2]
[331123666,1720093841800,-502.00979454,0.00013964,2]
[331123667,1720093841809,-500.0,0.00013964,2]
[331123668,1720093841818,-503.50219677,0.00013964,2]
[331123669,1720093841827,-458.74982513,0.00013964,2]
[331123670,1720093841836,-292.33548338,0.00013964,2]
[331123671,1720093841845,-500.0,0.00013964,2]
[331123672,1720093841854,-503.16572346,0.00013964,2]
[331123673,1720093841863,-505.32110935,0.00013964,2]
[331123674,1720093841872,-500.0,0.00013964,2]
[331123675,1720093841881,-500.0,0.00013964,2]
[331123676,1720093841890,-503.90733195,0.00013964,2]
[331123677,1720093841899,-500.0,0.00013964,2]
[331123678,1720093841908,-500.0,0.00013964,2]
[331123679,1720093841917,-500.0,0.00013964,2]
[331123680,1720093841926,-517.61177439,0.00013964,2]
[331123681,1720093841935,-500.0,0.00013964,2]
[331123682,1720093841944,-500.0,0.00013964,2]
[331123683,1720093841954,-500.0,0.00013964,2]
[331123684,1720093841963,-500.0,0.00013964,2]
[331123685,1720093841972,-500.0,0.00013964,2]
[331123686,1720093841982,-500.0,0.00013964,2]
[331123687,1720093841991,-500.0,0.00013964,2]
[331123688,1720093842000,-500.0,0.00013964,2]
[331123689,1720093842009,-500.0,0.00013964,2]
[331123690,1720093842018,-500.0,0.00013964,2]
[331123691,1720093842027,-514.7034435,0.00013964,2]
[331123692,1720093842037,-500.0,0.00013964,2]
[331123693,1720093842046,-500.0,0.00013964,2]
[331123694,1720093842055,-500.0,0.00013964,2]
[331123695,1720093842064,-500.0,0.00013964,2]
[331123696,1720093842073,-500.0,0.00013964,2]
[331123697,1720093842082,-504.77945916,0.00013964,2]
[331123698,1720093842091,-500.0,0.00013964,2]
[331123699,1720093842100,-500.0,0.00013964,2]
[331123700,1720093842109,-198.20603358,0.00013964,2]
[331123701,1720093842120,-500.0,0.00013964,2]
[331123702,1720093842132,-530.82,0.00013964,2]
[331123703,1720093842142,-504.04495603,0.00013964,2]
[331123704,1720093842151,-500.0,0.00013964,2]
[331123705,1720093842161,-500.0,0.00013964,2]
[331123706,1720093842170,-502.10915572,0.00013964,2]
[331123707,1720093842179,-505.56508567,0.00013964,2]
[331123708,1720093842188,-500.0,0.00013964,2]
[331123709,1720093842198,-500.0,0.00013964,2]
[331123710,1720093842208,-500.0,0.00013964,2]
[331123711,1720093842218,-500.0,0.00013964,2]
[331123712,1720093842227,-509.36892433,0.00013964,2]
[331123713,1720093842236,-230.64,0.00013964,2]
[331123714,1720093842245,-500.0,0.00013964,2]
[331123715,1720093842254,-500.0,0.00013964,2]
[331123716,1720093842263,-501.14042304,0.00013964,2]
[331123717,1720093842272,-500.0,0.00013964,2]
[331123718,1720093842281,-500.0,0.00013964,2]
[331123719,1720093842290,-500.0,0.00013964,2]
[331123720,1720093842299,-500.0,0.00013964,2]
[331123721,1720093842308,-500.0,0.00013964,2]
[331123722,1720093842317,-500.0,0.00013964,2]
[331123723,1720093842326,-500.0,0.00013964,2]
[331123724,1720093842335,-500.0,0.00013964,2]
[331123725,1720093842346,-500.0,0.00013964,2]
[331123726,1720093842355,-500.0,0.00013964,2]
[331123727,1720093842364,-502.27523963,0.00013964,2]
[331123728,1720093842373,-500.0,0.00013964,2]
[331123729,1720093842382,-500.0,0.00013964,2]
[331123730,1720093842391,-503.28794305,0.00013964,2]
[331123731,1720093842400,-500.0,0.00013964,2]
[331123732,1720093842409,-743.39,0.00013964,2]
[331123733,1720093842418,-500.0,0.00013964,2]
[331123734,1720093842427,-441.89663203,0.00013964,2]
[331123735,1720093842436,-500.0,0.00013964,2]
[331123736,1720093842448,-500.0,0.00013964,2]
[331123737,1720093842459,-500.0,0.00013964,2]
[331123738,1720093842469,-500.0,0.00013964,2]
[331123739,1720093842484,-504.09428953,0.00013964,2]
[331123740,1720093842493,-500.77609485,0.00013964,2]
[331123741,1720093842503,-500.0,0.00013964,2]
[331123742,1720093842514,-505.05291359,0.00013964,2]
[331123743,1720093842523,-500.0,0.00013964,2]
[331123744,1720093842534,-500.0,0.00013964,2]
[331123745,1720093842543,-500.0,0.00013964,2]